bitfinex-derivatives/quotes_ETHF0:USTF0_20250327
["timestamp","ask_amount","ask_price","bid_price","bid_amount"]
[1743085749309,4.6145,2003.3,2002.8,3.2078]
[1743085749508,0.00748092,2003.2,2002.8,3.2078]
[1743085749706,0.99883,2002.9,2002.8,4.20668]
[1743085750010,0.00748092,2003.2,2003.1,0.99873]
[1743085750200,0.00748092,2003.2,2003.1,4.20653]
[1743085750602,2.32256092,2003.2,2003.1,3.2078]
[1743085750806,0.99879,2003.0,2002.9,0.99881]
[1743085751001,1.32388092,2003.2,2002.8,3.2078]
[1743085751310,1.32388092,2003.2,2002.8,4.20668]
[1743085751311,1.4137,2002.9,2002.8,4.20668]
[1743085751502,1.4137,2003.1,2003.0,0.99878]
[1743085751703,0.00748092,2003.2,2003.1,0.99873]
[1743085751914,3.20997,2004.1,2003.7,0.99839]
[1743085752108,1.4137,2003.8,2003.7,0.99839]
[1743085752514,0.7143,2004.1,2003.7,5.70386]
[1743085752515,0.99826,2004.1,2003.7,5.70386]
[1743085752814,1.4137,2004.2,2004.1,0.99823]
[1743085753111,1.42118092,2004.4,2004.0,3.2078]
[1743085753412,0.99823,2004.2,2004.0,4.20606]
[1743085753614,1.4137,2004.1,2004.0,4.20606]
[1743085753810,0.00748092,2004.4,2004.0,3.2078]
[1743085754011,0.00748092,2004.4,2004.3,0.99813]
[1743085754402,0.00748092,2004.4,2004.2,0.99815]
[1743085754608,1.00559092,2004.4,2004.3,0.99813]
[1743085754809,0.00748092,2004.4,2004.2,0.99816]
[1743085755110,0.00748092,2004.4,2004.1,3.578]
[1743085755302,0.99818,2004.2,2004.1,3.578]
[1743085755918,7.10101092,2004.4,2004.0,3.2078]
[1743085755919,0.99823,2004.1,2004.0,3.2078]
[1743085756313,3.1515,2004.3,2003.9,0.00748092]
[1743085756314,0.99828,2004.0,2003.9,0.00748092]
[1743085756614,2.38878,2004.0,2003.9,0.00748092]
[1743085757412,6.7285,2004.3,2003.9,3.58448092]
[1743085757413,3.8639,2004.3,2003.9,3.58448092]
[1743085757615,3.8639,2004.3,2004.0,1.3638]
[1743085757616,1.4172,2004.2,2004.0,1.3638]
[1743085757812,1.4172,2004.2,2004.1,0.99823]
[1743085758015,2.41538,2004.2,2004.1,0.99823]
[1743085758204,1.4172,2004.2,2004.1,0.99823]
[1743085758410,0.00748092,2004.4,2004.3,0.99813]
[1743085758707,0.00748092,2004.4,2004.3,7.78293]
[1743085758906,0.00748092,2004.4,2004.3,10.28293]
[1743085759107,2.41506,2004.9,2004.8,0.99788]
[1743085759316,0.99782,2005.0,2004.9,0.99783]
[1743085759719,0.99784,2004.9,2004.8,0.99785]
[1743085760312,0.99787,2004.9,2004.8,0.99787]
[1743085760614,0.99799,2004.6,2004.5,0.99799]
[1743085760911,0.99795,2004.7,2004.6,0.99795]
[1743085761111,0.99798,2004.6,2004.5,6.01199]
[1743085761309,2.42598,2004.6,2004.5,6.01203]
[1743085761812,0.99791,2004.8,2004.7,0.99791]
[1743085762011,2.42586,2004.9,2004.8,0.99788]
[1743085762315,0.99788,2004.8,2004.7,1.437]
[1743085762510,2.42588,2004.8,2004.7,1.437]
[1743085762714,2.42588,2004.8,2004.6,3.2078]
[1743085762913,0.99805,2004.5,2004.4,0.99804]
[1743085763113,0.99808,2004.4,2004.3,9.14559]
[1743085763310,0.99808,2004.4,2004.3,5.56859]
[1743085763713,3.82036,2004.6,2004.3,4.5705]
[1743085763714,1.3254,2004.6,2004.3,4.5705]
[1743085764119,0.99808,2004.4,2004.3,5.5686]
[1743085766020,0.99806,2004.5,2004.4,0.99805]
[1743085766216,1.3254,2004.6,2004.4,1.3116]
[1743085766418,1.0,2822.0,2004.6,2.49496]
[1743085766419,3.2078,2005.3,2004.6,2.49496]
[1743085766620,2.42203,2005.0,2004.9,0.99783]
[1743085766813,2.42203,2005.0,2004.7,4.5194]
[1743085766814,0.99783,2004.9,2004.8,3.576]
[1743085767121,2.42203,2004.9,2004.8,4.57388]
[1743085767321,0.00748092,2005.1,2005.0,0.99778]
[1743085767322,1.00523092,2005.1,2005.0,0.99778]
[1743085767514,1.43168092,2005.1,2005.0,0.99778]
[1743085767818,0.00748092,2005.1,2005.0,0.99778]
[1743085768211,0.00748092,2005.1,2005.0,4.20558]
[1743085771715,6.37144,2005.9,2005.4,0.99754]
[1743085771716,0.99754,2005.5,2005.4,0.99754]
[1743085772018,1.3281,2005.6,2005.1,2.49432]
[1743085772019,2.32562,2005.6,2005.3,6.7828]
[1743085772227,2.32561,2005.6,2005.4,1.3979]
[1743085772417,2.32561,2005.6,2005.5,0.99753]
[1743085772617,0.99753,2005.5,2005.4,2.39544]
[1743085772818,2.34083,2005.5,2005.4,2.39544]
[1743085774220,2.34083,2005.5,2005.4,2.39548]
[1743085774419,2.34083,2005.5,2005.4,1.3979]
[1743085774617,0.99758,2005.4,2005.3,0.00748092]
[1743085774822,3.05408,2005.4,2005.3,0.00748092]
[1743085775627,3.05408,2005.4,2005.3,4.21291092]
[1743085775831,1.3433,2005.4,2005.3,4.21291092]
[1743085776128,0.9975,2005.6,2005.3,3.21528092]
[1743085776330,0.99757,2005.5,2005.4,2.29317]
[1743085776727,0.99757,2005.5,2005.4,1.2956]
[1743085776929,0.99757,2005.5,2005.4,2.29318]
[1743085777125,0.99757,2005.5,2005.4,1.2956]
[1743085777332,0.99757,2005.5,2005.4,2.29318]
[1743085777830,0.99757,2005.5,2005.4,1.2956]
[1743085778331,2.42179,2005.6,2005.5,0.99753]
[1743085778929,2.42179,2005.6,2005.5,2.32253]
[1743085780935,0.99753,2005.5,2005.4,4.57153]
[1743085781130,0.99758,2005.4,2005.3,0.00748092]
[1743085782229,0.99758,2005.4,2005.3,1.00511092]
[1743085782834,1.3572,2005.5,2005.4,0.99758]
[1743085783028,0.99746,2005.7,2005.6,0.99748]
[1743085783336,2.31176,2005.7,2005.6,0.99748]
[1743085784037,0.00748092,2005.8,2005.7,0.99743]
[1743085784233,1.3143,2006.4,2006.3,0.99713]
[1743085784431,0.99713,2006.3,2006.2,4.57014]
[1743085785233,2.3114,2006.4,2006.3,0.99713]
[1743085785436,0.99713,2006.3,2006.2,4.57014]
[1743085785634,1.3592,2006.3,2006.2,4.57014]
[1743085785836,2.35633,2006.3,2006.2,4.57014]
[1743085786031,2.35633,2006.3,2006.2,4.57018]
[1743085786232,0.00748092,2006.5,2006.2,4.57018]
[1743085786549,0.00748092,2006.5,2006.4,0.99708]
[1743085786738,1.00451092,2006.5,2006.4,0.99708]
[1743085786939,1.00451092,2006.5,2006.4,2.38458]
[1743085787130,0.00748092,2006.5,2006.4,2.38458]
[1743085787531,1.00451092,2006.5,2006.4,2.38458]
[1743085787731,1.39008092,2006.5,2006.4,2.38458]
[1743085788028,0.00748092,2006.5,2006.4,2.38458]
[1743085792744,0.00748092,2006.5,2006.4,5.95558]
[1743085792933,1.00451092,2006.5,2006.4,4.9585]
[1743085793336,0.00748092,2006.5,2006.4,5.95558]
[1743085793840,1.40208092,2006.5,2006.4,5.95558]
[1743085797545,0.00748092,2006.5,2006.4,5.95558]
[1743085800746,0.00748092,2006.5,2006.4,8.82412347]
[1743085800944,1.3121,2007.0,2006.9,0.99684]
[1743085801243,1.3121,2007.0,2006.9,4.56684]
[1743085801745,1.3121,2007.0,2006.9,5.87704]
[1743085802249,0.00748092,2007.2,2007.1,0.99674]
[1743085802437,0.00748092,2007.2,2007.1,9.17094]
[1743085802637,0.7052,2008.1,2007.1,16.6622]
[1743085802841,3.2078,2008.9,2007.9,3.2078]
[1743085803149,3.2078,2008.3,2007.9,3.569]
[1743085803344,3.2078,2008.6,2008.5,0.99604]
[1743085803541,3.2078,2008.6,2008.3,6.05932]
[1743085803850,3.2078,2008.6,2008.5,0.99604]
[1743085804440,1.39028638,2008.8,2008.7,0.99594]
[1743085804649,0.68508638,2008.8,2008.6,0.99595]
[1743085804840,0.99609,2008.4,2008.3,0.00748092]
[1743085805044,0.99607,2008.5,2008.3,0.00748092]
[1743085805349,0.7052,2008.7,2008.6,0.99599]
[1743085805552,0.99594,2008.7,2008.6,0.99599]
[1743085805744,0.68508638,2008.8,2008.4,3.89736]
[1743085805745,0.68508638,2008.8,2008.5,2.49011]
[1743085805944,0.00498638,2008.8,2008.7,0.99594]
[1743085806147,0.00498638,2008.8,2008.7,2.40314]
[1743085806350,6.38e-06,2008.8,2008.7,2.40314]
[1743085806550,6.38e-06,2008.8,2008.7,7.03314]
[1743085806742,6.38e-06,2008.8,2008.7,4.90314]
[1743085806942,6.38e-06,2008.8,2008.7,55.83854]
[1743085807245,6.38e-06,2008.8,2008.7,58.06854]
[1743085807642,6.38e-06,2008.8,2008.7,55.83854]
[1743085808845,6.38e-06,2008.8,2008.7,57.79854]
[1743085809050,6.38e-06,2008.8,2008.7,55.83854]
[1743085809343,6.38e-06,2008.8,2008.7,61.82654]
[1743085809551,6.38e-06,2008.8,2008.7,64.03654]
[1743085809940,6.38e-06,2008.8,2008.7,61.82654]
[1743085810249,0.6765,2009.9,2009.8,0.9954]
[1743085810445,3.2078,2010.1,2009.8,3.2078]
[1743085810639,3.2078,2010.1,2009.8,4.20318]
[1743085810950,0.9953,2010.0,2009.9,4.56233]
[1743085811143,0.99535,2009.9,2009.8,3.2078]
[1743085811344,0.99532,2010.0,2009.8,6.7748]
[1743085811544,0.99531,2010.0,2009.9,0.99534]
[1743085811741,3.2078,2010.4,2010.3,0.99515]
[1743085812148,3.2078,2010.8,2010.3,0.99515]
[1743085812355,0.99497,2010.7,2010.6,0.99498]
[1743085812858,0.995,2010.6,2010.5,4.56105]
[1743085813149,0.995,2010.6,2010.1,3.566]
[1743085813150,2.48751,2010.6,2010.1,3.566]
[1743085813354,3.2078,2010.8,2010.1,3.566]
[1743085813355,5.69509,2010.8,2010.2,2.48801]
[1743085813552,0.99506,2010.5,2010.4,0.99505]
[1743085813751,0.99506,2010.5,2010.4,3.566]
[1743085813946,3.2078,2010.8,2010.1,3.2078]
[1743085814151,2.48784,2010.4,2010.1,3.566]
[1743085814453,4.203,2010.2,2010.1,3.566]
[1743085814643,0.9952,2010.2,2010.1,3.566]
[1743085815041,6.40661,2010.3,2009.9,0.99532]
[1743085815241,2.48804,2010.2,2009.8,4.20316]
[1743085815446,0.99535,2009.9,2009.8,6.7738]
[1743085816051,0.9954,2009.8,2009.7,0.00748092]
[1743085817253,5.69611,2010.0,2009.8,0.99535]
[1743085817254,0.99537,2009.9,2009.8,0.99535]
[1743085817447,4.20312,2010.0,2009.9,0.99535]
[1743085817648,0.99535,2009.9,2009.8,4.56036]
[1743085817848,0.9954,2009.8,2009.7,0.00748092]
[1743085818548,0.9954,2009.8,2009.7,1.00293092]
[1743085818749,0.9954,2009.8,2009.7,0.00748092]
[1743085819155,0.9954,2009.8,2009.7,1.00293092]
[1743085819460,5.69608,2010.0,2009.8,0.99536]
[1743085819461,0.99539,2009.9,2009.8,0.99536]
[1743085819657,0.9954,2009.8,2009.7,1.00289092]
[1743085819855,0.9954,2009.8,2009.7,4.56689092]
[1743085820759,0.9954,2009.8,2009.7,3.57148092]
[1743085821556,0.9954,2009.8,2009.7,0.00748092]
[1743085822957,0.99579,2009.1,2009.0,3.564]
[1743085823162,0.99579,2009.1,2009.0,5.96506]
[1743085823462,3.2078,2009.2,2009.1,0.99574]
[1743085823463,4.20353,2009.2,2009.1,0.99574]
[1743085823665,0.99574,2009.1,2009.0,5.96506]
[1743085823856,0.99574,2009.1,2009.0,1.4053]
[1743085824068,0.99574,2009.1,2009.0,5.96509]
[1743085824260,0.99574,2009.2,2009.1,0.99571]
[1743085824461,0.99574,2009.1,2009.0,5.96507]
[1743085824662,0.00741828,2009.3,2009.0,4.9693]
[1743085824663,0.99572,2009.2,2009.0,4.9693]
[1743085824966,0.99572,2009.2,2009.1,0.99569]
[1743085825858,1.00310828,2009.3,2009.2,0.99569]
[1743085826059,0.00741828,2009.3,2009.2,0.99569]
[1743085826259,1.00306828,2009.3,2009.2,0.99569]
[1743085826464,0.00741828,2009.3,2009.2,0.99569]
[1743085826859,0.99574,2009.1,2009.0,1.4053]
[1743085827060,0.99574,2009.1,2009.0,4.9683]
[1743085827257,1.377,2009.2,2008.9,50.184]
[1743085827460,0.99579,2009.0,2008.9,55.1125]
[1743085827660,0.99579,2009.0,2008.9,50.184]
[1743085827868,0.99584,2008.9,2008.8,0.00746213]
[1743085828064,2.48991,2008.7,2008.4,3.563]
[1743085828267,3.2078,2008.6,2008.4,3.563]
[1743085828461,3.2078,2008.6,2008.5,2.36154]
[1743085828766,1.377,2008.8,2008.5,1.3655]
[1743085828970,2.37299,2008.6,2008.5,2.36152]
[1743085829263,2.37299,2008.6,2008.5,2.36154]
[1743085829458,1.377,2008.6,2008.5,2.36154]
[1743085829764,2.37299,2008.6,2008.5,2.36154]
[1743085829960,0.99598,2008.7,2008.6,0.99599]
[1743085830164,4.20369,2008.9,2008.8,0.99589]
[1743085830367,3.2078,2008.9,2008.8,0.99589]
[1743085830766,1.3567,2009.1,2009.0,0.99579]
[1743085830962,1.3567,2009.1,2009.0,3.564]
[1743085830963,2.35249,2009.1,2009.0,3.564]
[1743085831367,1.3567,2009.1,2009.0,5.99059]
[1743085831866,4.20352,2009.2,2009.1,0.99574]
[1743085832264,3.2078,2009.2,2009.1,0.99574]
[1743085832961,3.2078,2009.2,2009.1,4.55974]
[1743085833367,0.00741828,2009.3,2009.2,0.99569]
[1743085833565,2.48861,2009.8,2009.2,0.99569]
[1743085833566,3.2078,2009.8,2009.4,0.9956]
[1743085833770,5.83,2010.5,2010.0,0.99529]
[1743085833771,4.20308,2010.1,2010.0,0.99529]
[1743085834064,4.20305,2010.1,2010.0,3.564]
[1743085834470,6.26065,2010.1,2010.0,3.564]
[1743085834667,0.99535,2009.9,2009.8,2.30807]
[1743085834969,0.99535,2009.9,2009.8,0.00746213]
[1743085835668,0.99545,2009.7,2009.6,3.564]
[1743085835866,4.20325,2009.7,2009.6,3.564]
[1743085836066,0.99555,2009.5,2009.4,1.3127]
[1743085836259,0.99555,2009.5,2009.4,3.563]
[1743085836459,0.99568,2009.3,2009.2,0.99566]
[1743085836664,3.2078,2009.3,2009.1,1.3876]
[1743085836860,2.33169,2009.2,2009.1,2.38331]
[1743085837065,2.33169,2009.2,2009.1,5.94631]
[1743085837467,2.33169,2009.2,2009.1,4.9506]
[1743085837673,2.33169,2009.2,2009.1,3.563]
[1743085837872,0.99574,2009.1,2009.0,53.75546213]
[1743085838175,2.33174,2009.1,2009.0,53.75546213]
[1743085838477,2.33174,2009.1,2009.0,0.00746213]
[1743085838970,2.33174,2009.1,2009.0,1.31776213]
[1743085839173,2.33174,2009.1,2009.0,0.00746213]
[1743085840471,2.33174,2009.1,2009.0,1.31776213]
[1743085841171,2.33174,2009.1,2009.0,0.00746213]
[1743085846475,0.99589,2008.8,2008.7,1.3394]
[1743085846680,0.99594,2008.7,2008.6,3.564]
[1743085846874,0.99594,2008.7,2008.3,50.181]
[1743085846875,0.99609,2008.4,2008.3,50.181]
[1743085847077,0.99609,2008.4,2008.3,54.74014]
[1743085847379,3.2078,2008.5,2008.3,54.74014]
[1743085847380,4.20388,2008.5,2008.4,0.99609]
[1743085848172,0.99614,2008.3,2008.2,0.00746213]
[1743085848581,3.2078,2008.5,2008.4,0.99609]
[1743085848872,2.48982,2008.8,2008.7,0.99588]
[1743085848873,4.20369,2008.8,2008.7,0.99588]
[1743085849083,3.2078,2008.8,2008.7,0.99588]
[1743085849280,4.20369,2008.8,2008.7,0.99588]
[1743085849478,4.20369,2008.8,2008.7,0.99594]
[1743085849674,0.99594,2008.7,2008.6,5.25678]
[1743085849984,3.2078,2008.8,2008.6,5.25678]
[1743085849985,3.2078,2008.8,2008.7,0.99594]
[1743085850183,0.99594,2008.7,2008.6,5.25676]
[1743085850382,0.99594,2008.7,2008.3,3.15085]
[1743085850383,0.99607,2008.5,2008.4,0.99605]
[1743085850574,0.99602,2008.6,2008.5,0.996]
[1743085850775,0.7066,2009.1,2008.4,0.6968]
[1743085850776,3.2078,2009.1,2009.0,0.99579]
[1743085851284,2.48898,2009.5,2009.2,0.99569]
[1743085851285,4.20344,2009.4,2009.2,0.99569]
[1743085851484,4.20344,2009.4,2009.2,4.55969]
[1743085851692,3.2078,2009.4,2009.2,4.55969]
[1743085852184,1.00311213,2009.3,2009.2,4.55969]
[1743085852378,0.00746213,2009.3,2009.2,4.55969]
[1743085853089,1.00311213,2009.3,2009.2,3.564]
[1743085853287,1.00311213,2009.3,2009.2,4.8835]
[1743085853588,1.40786213,2009.3,2008.9,4.9354]
[1743085853886,0.99578,2009.1,2009.0,2.31528]
[1743085855189,0.99573,2009.2,2009.1,0.99573]
[1743085855487,2.29483,2009.2,2009.1,0.99573]
[1743085855687,1.2991,2009.2,2009.1,0.99573]
[1743085855885,2.29479,2009.2,2009.1,0.99573]
[1743085856089,0.99574,2009.1,2009.0,2.31525]
[1743085856283,2.29484,2009.1,2009.0,2.31525]
[1743085856881,2.29484,2009.1,2009.0,1.3195]
[1743085857182,2.29484,2009.1,2009.0,2.31529]
[1743085857183,3.2078,2009.1,2009.0,2.31529]
[1743085857576,4.20354,2009.1,2009.0,2.31529]
[1743085857782,5.55294,2009.1,2009.0,1.3195]
[1743085858082,0.99579,2009.0,2008.9,5.93122]
[1743085858289,2.34519,2009.0,2008.9,5.93122]
[1743085859487,1.3494,2009.0,2008.9,5.93122]
[1743085859687,2.34519,2009.0,2008.9,4.9354]
[1743085859894,2.34519,2009.0,2008.9,5.25664]
[1743085860186,2.34519,2009.0,2008.9,2.0622]
[1743085860394,0.99589,2008.8,2008.7,4.2801]
[1743085860580,4.20369,2008.8,2008.7,5.27604]
[1743085860983,0.99587,2008.9,2008.8,0.99587]
[1743085861184,2.37417,2008.9,2008.8,1.3654]
[1743085861393,1.3783,2008.9,2008.7,4.2801]
[1743085861599,3.2078,2009.1,2008.8,2.36129]
[1743085861786,3.2078,2009.1,2009.0,0.99579]
[1743085861986,4.20354,2009.1,2009.0,3.563]
[1743085862488,0.99579,2009.0,2008.9,1.3654]
[1743085862688,0.99589,2008.8,2008.7,5.27603]
[1743085863286,0.99588,2008.9,2008.8,0.99588]
[1743085863602,0.99588,2008.9,2008.8,2.39998]
[1743085863889,0.99588,2008.9,2008.8,2.39999]
[1743085864097,0.99582,2009.0,2008.9,0.99584]
[1743085864290,0.99582,2009.0,2008.9,2.39994]
[1743085864483,5.58468,2009.1,2009.0,0.99579]
[1743085864688,5.58468,2009.1,2009.0,2.39989]
[1743085864892,5.58468,2009.1,2009.0,1.4041]
[1743085865292,5.10478,2009.1,2009.0,1.4041]
[1743085866495,5.10478,2009.1,2009.0,2.39989]
[1743085866796,2.7279,2009.1,2009.0,2.39989]
[1743085867098,2.7279,2009.1,2009.0,3.05679]
[1743085867390,1.00311213,2009.3,2009.2,0.99569]
[1743085867591,1.00311213,2009.3,2009.2,4.55869]
[1743085867592,0.00746213,2009.3,2009.2,4.55869]
[1743085868588,0.99549,2009.7,2009.3,2.48903]
[1743085868795,0.99549,2009.7,2009.6,0.9955]
[1743085869005,0.99549,2009.7,2009.6,4.5585]
[1743085869291,2.30499,2009.7,2009.6,4.5585]
[1743085869685,0.99545,2009.7,2009.6,5.90206]
[1743085869890,0.99545,2009.7,2009.6,3.563]
[1743085870089,2.30495,2009.7,2009.6,3.563]
[1743085870496,2.30495,2009.7,2009.4,0.00746213]
[1743085870497,1.3095,2009.7,2009.4,0.00746213]
[1743085870692,4.20335,2009.5,2009.4,0.00746213]
[1743085875590,4.20335,2009.5,2009.4,1.00306213]
[1743085875797,4.20335,2009.5,2009.4,2.36136213]
[1743085877095,0.99555,2009.5,2009.4,2.36136213]
[1743085877301,0.99554,2009.6,2009.5,0.9955]
[1743085877500,2.30497,2009.7,2009.6,0.9955]
[1743085877693,2.30497,2009.7,2009.4,3.85465213]
[1743085877694,0.99555,2009.5,2009.4,2.36134213]
[1743085877895,0.99555,2009.5,2009.4,5.92334213]
[1743085879406,1.00283213,2009.9,2009.8,0.9954]
[1743085879593,0.9954,2009.8,2009.7,6.62432]
[1743085879798,2.423,2009.8,2009.7,6.62432]
[1743085879998,1.4276,2009.8,2009.7,6.62432]
[1743085880601,2.423,2009.8,2009.7,5.6289]
[1743085880795,5.6308,2009.8,2009.7,3.562]
[1743085881299,0.99555,2009.5,2009.4,5.98334213]
[1743085881500,0.99555,2009.5,2009.4,0.00746213]
[1743085881702,4.20335,2009.5,2009.4,0.00746213]
[1743085882903,4.20335,2009.5,2009.1,3.562]
[1743085882904,5.69669,2009.5,2009.1,3.562]
[1743085883112,0.99567,2009.3,2009.2,0.99565]
[1743085883409,2.3199,2009.4,2009.3,0.99565]
[1743085883712,2.3199,2009.4,2009.2,0.99565]
[1743085883713,0.99567,2009.3,2009.2,0.99565]
[1743085884010,0.99574,2009.2,2009.1,0.99572]
[1743085884195,0.99574,2009.1,2009.0,5.86033213]
[1743085884401,2.37884,2009.1,2009.0,5.86033213]
[1743085884609,2.37884,2009.1,2009.0,2.29833213]
[1743085884795,2.37884,2009.1,2009.0,1.30256213]
[1743085885296,2.37884,2009.1,2009.0,0.00746213]
[1743085886302,2.37884,2009.1,2009.0,1.00325213]
[1743085886503,0.6629,2009.4,2009.0,2.49694213]
[1743085886706,2.37875,2009.3,2009.2,0.99569]
[1743085886907,0.99569,2009.2,2009.1,4.55772]
[1743085887106,2.37879,2009.2,2009.1,4.55772]
[1743085887308,1.3831,2009.2,2009.1,0.99574]
[1743085887799,0.99559,2009.5,2009.4,0.99558]
[1743085887997,0.99562,2009.4,2009.3,0.99561]
[1743085888600,0.99558,2009.5,2009.4,0.99556]
[1743085889016,2.34208,2009.5,2009.4,0.99556]
[1743085889204,2.34208,2009.5,2009.3,0.99561]
[1743085889205,0.99565,2009.4,2009.3,0.99561]
[1743085889409,2.34215,2009.4,2009.3,0.99561]
[1743085889617,1.3465,2009.4,2009.1,3.562]
[1743085889916,0.99574,2009.1,2009.0,3.56946213]
[1743085890117,0.99574,2009.1,2009.0,4.56525213]
[1743085890415,2.34224,2009.2,2009.1,0.99574]
[1743085890612,0.99574,2009.1,2009.0,1.00322213]
[1743085890814,2.31184,2009.1,2009.0,0.00746213]
[1743085891520,0.99594,2008.8,2008.7,0.99593]
[1743085891715,5.69731,2009.0,2008.6,1.4302]
[1743085892025,0.99594,2008.7,2008.6,5.98817]
[1743085892313,0.99599,2008.6,2008.5,54.75101]
[1743085892520,0.99593,2008.8,2008.7,0.99591]
[1743085892720,0.00746213,2008.8,2008.7,0.99594]
[1743085892916,0.00746213,2008.8,2008.7,5.98814]
[1743085895815,0.99609,2008.4,2008.3,1.38296213]
[1743085896013,0.99609,2008.5,2008.4,0.99608]
[1743085896315,0.99609,2008.4,2008.3,1.38296213]
[1743085896513,0.99609,2008.4,2008.3,5.94110213]
[1743085896719,0.99609,2008.4,2008.3,3.56946213]
[1743085896920,0.99609,2008.4,2008.3,1.00360213]
[1743085897312,0.99609,2008.4,2008.3,2.31140213]
[1743085897513,0.99606,2008.5,2008.4,0.99605]
[1743085897713,0.99606,2008.5,2008.4,2.30385]
[1743085897916,0.00746213,2008.8,2008.4,1.3078]
[1743085898232,0.99598,2008.7,2008.6,0.99598]
[1743085898410,0.99598,2008.7,2008.6,2.30378]
[1743085898915,0.99598,2008.7,2008.6,5.86578]
[1743085899135,0.00746213,2008.8,2008.7,0.99594]
[1743085899420,0.00746213,2008.8,2008.7,3.00094]
[1743085900525,1.00335213,2008.8,2008.7,3.00094]
[1743085900817,1.00335213,2008.8,2008.7,2.005]
[1743085901017,1.00335213,2008.8,2008.7,3.00094]
[1743085901726,0.99594,2008.7,2008.6,3.562]
[1743085901920,0.99594,2008.7,2008.6,0.99599]
[1743085903017,0.99599,2008.6,2008.5,5.2851]
[1743085903226,0.99599,2008.6,2008.5,6.28114]
[1743085903419,0.99604,2008.5,2008.4,3.562]
[1743085903626,0.99604,2008.5,2008.4,5.95009]
[1743085904025,0.99604,2008.5,2008.4,2.38809]
[1743085904428,0.99603,2008.6,2008.5,0.99601]
[1743085904622,0.99604,2008.5,2008.4,2.38805]
[1743085904828,0.99602,2008.6,2008.5,0.99599]
[1743085906323,0.99608,2008.5,2008.4,0.99604]
[1743085907730,1.70163,2008.6,2008.5,0.99604]
[1743085908120,0.99604,2008.5,2008.4,2.35468]
[1743085908426,0.7056,2008.6,2008.3,0.00746213]
[1743085908427,0.99609,2008.4,2008.3,0.00746213]
[1743085908720,0.99619,2008.2,2008.1,3.562]
[1743085908922,0.99619,2008.2,2008.1,4.55824]
[1743085909125,0.99619,2008.2,2008.1,3.562]
[1743085909328,0.99628,2008.1,2008.0,0.99625]
[1743085909522,0.99623,2008.2,2008.1,0.99619]
[1743085909722,0.99617,2008.3,2008.2,0.99614]
[1743085909922,2.39487,2008.3,2008.2,0.99614]
[1743085910133,2.39487,2008.3,2008.0,2.49062]
[1743085910134,0.99624,2008.2,2008.1,0.9962]
[1743085910329,1.3987,2008.2,2008.1,0.9962]
[1743085910626,2.39489,2008.2,2008.1,0.9962]
[1743085910826,0.99626,2008.1,2008.0,0.99625]
[1743085911023,2.39496,2008.1,2008.0,2.41295]
[1743085911218,2.39495,2008.1,2008.0,0.99629]
[1743085911425,1.3987,2008.1,2008.0,2.41299]
[1743085911823,2.39494,2008.1,2008.0,2.41299]
[1743085912125,1.3987,2008.1,2008.0,2.41299]
[1743085912335,2.39494,2008.1,2008.0,1.4167]
[1743085912830,1.3987,2008.1,2007.8,53.75646213]
[1743085913028,0.99629,2008.0,2007.9,2.34129]
[1743085913224,2.39496,2008.1,2008.0,0.99629]
[1743085913431,0.99634,2007.9,2007.8,53.75646213]
[1743085913728,0.99634,2007.9,2007.8,54.75285213]
[1743085914037,4.6065,2008.1,2007.9,0.99633]
[1743085914038,0.99633,2008.0,2007.9,0.99633]
[1743085914225,2.29663,2008.0,2007.9,2.34133]
[1743085914721,0.99634,2007.9,2007.8,51.19085213]
[1743085914922,2.35134,2007.9,2007.8,50.19446213]
[1743085915522,2.35134,2007.9,2007.8,0.00746213]
[1743085916035,2.35134,2007.9,2007.8,1.00385213]
[1743085916531,2.35134,2007.9,2007.8,0.00746213]
[1743085916730,2.35134,2007.9,2007.8,1.00385213]
[1743085917722,3.8959,2008.4,2007.8,5.71526213]
[1743085917928,2.31309,2008.3,2008.2,0.99619]
[1743085918127,2.31304,2008.3,2008.2,0.99619]
[1743085918325,0.99629,2008.0,2007.9,3.562]
[1743085918625,0.99634,2007.9,2007.8,0.00746213]
[1743085918832,2.31324,2007.9,2007.8,0.00746213]
[1743085919224,0.99644,2007.7,2007.6,0.99646]
[1743085919427,0.99644,2007.7,2007.6,1.4128]
[1743085919633,0.99659,2007.4,2007.3,3.562]
[1743085919839,0.99659,2007.5,2007.4,0.99657]
[1743085920020,1.3169,2007.6,2007.5,0.99654]
[1743085920021,2.31343,2007.6,2007.5,0.99654]
[1743085920330,2.31343,2007.6,2007.3,4.9748]
[1743085920331,0.99654,2007.5,2007.4,0.99657]
[1743085920534,0.99659,2007.4,2007.3,1.00156476]
[1743085920727,0.99656,2007.5,2007.4,0.99659]
[1743085920926,0.99656,2007.5,2007.4,2.41189]
[1743085922734,0.99656,2007.5,2007.4,1.4153]
[1743085923237,0.99656,2007.5,2007.4,2.41189]
[1743085924932,3.2078,2007.7,2007.4,1.4153]
[1743085925138,0.99653,2007.6,2007.5,0.99649]
[1743085925430,4.20427,2007.7,2007.6,0.99649]
[1743085925636,0.99649,2007.6,2007.5,2.32671]
[1743085926225,5.69898,2007.7,2007.3,0.00497476]
[1743085926431,0.99658,2007.5,2007.4,0.99654]
[1743085927229,0.99652,2007.6,2007.5,0.99649]
[1743085927434,0.99654,2007.5,2007.4,2.42424]
[1743085927637,0.99654,2007.5,2007.4,1.4277]
[1743085927830,0.99654,2007.5,2007.4,2.42429]
[1743085928025,0.99659,2007.4,2007.3,0.00497476]
[1743085928230,0.99679,2007.0,2006.9,0.99684]
[1743085928434,1.64838,2007.3,2007.2,0.99669]
[1743085929026,3.2078,2007.4,2007.3,0.99664]